lending/lending_fUSD_20240721
["ID","MTS","AMOUNT","RATE_DAILY","PERIOD"]
[332813284,1721545841489,-151.0,0.00022562,7]
[332813287,1721545841499,-151.0,0.00022562,7]
[332813289,1721545841509,-151.0,0.00022562,7]
[332813291,1721545841518,-155.26,0.00022562,2]
[332813293,1721545841528,-9601.72,0.00022562,2]
[332813295,1721545841538,-21988.77,0.00022562,2]
[332813297,1721545841547,-489.06,0.00022562,2]
[332813299,1721545841556,-1771.55,0.00022562,2]
[332813301,1721545841565,-4209.87,0.00022562,2]
[332813303,1721545841575,-1700.0,0.00022808,2]
[332813305,1721545841584,-900.0,0.00022808,2]
[332813307,1721545841594,-240.19567873,0.00023,2]
[332813309,1721545841603,-350.0,0.00023,2]
[332813311,1721545841613,-180.0,0.00023205,2]
[332813313,1721545841622,-155.26,0.00023207,2]
[332813315,1721545841631,-167.48410149,0.00023268,2]
[332813317,1721545841642,-1000.0,0.00023356,2]
[332813319,1721545841652,-151.0,0.00023368,7]
[332813321,1721545841661,-151.0,0.00023368,7]
[332813323,1721545841671,-167.149442,0.00023368,7]
[332813325,1721545841680,-167.149442,0.00023368,7]
[332813327,1721545841690,-1000.0,0.00023465,2]
[332813329,1721545841700,-151.807947,0.00023465,7]
[332813331,1721545841709,-151.0,0.00023465,7]
[332813333,1721545841720,-1287.62327635,0.00023555,2]
[332813335,1721545841729,-1000.0,0.0002363,2]
[332813337,1721545841739,-500.0,0.0002363,2]
[332813339,1721545841751,-150.0,0.00023737,4]
[332813341,1721545841760,-4096.78398648,0.00023788,2]
[332813343,1721545841770,-191.66,0.00023831,30]
[332813345,1721545841779,-542.383194,0.00023836,7]
[332813347,1721545841789,-542.383194,0.00023836,7]
[332813349,1721545841800,-542.383194,0.00023836,7]
[332813351,1721545841810,-542.383194,0.00023836,7]
[332813353,1721545841820,-542.383194,0.00023836,7]
[332813355,1721545841831,-542.383194,0.00023836,7]
[332813358,1721545841842,-542.383194,0.00023836,7]
[332813360,1721545841852,-542.383194,0.00023836,7]
[332813361,1721545841861,-155.26,0.00023852,2]
[332813363,1721545841870,-1700.0,0.00023904,2]
[332813365,1721545841880,-151.0,0.00023904,7]
[332813367,1721545841889,-151.0,0.00023904,7]
[332813369,1721545841899,-165.972595,0.00023904,7]
[332813371,1721545841908,-900.0,0.00023904,2]
[332813373,1721545841918,-1914.93653259,0.00023944,2]
[332813375,1721545841927,-1000.0,0.00024042,2]
[332813377,1721545841936,-1600.57,0.00024043,2]
[332813379,1721545841946,-712.0,0.000241,2]
[332813381,1721545841955,-1000.0,0.000241,2]
[332813383,1721545841964,-450.0,0.000241,2]
[332813385,1721545841974,-347.805978,0.00024174,7]
[332813387,1721545841983,-347.805978,0.00024174,7]
[332813389,1721545841992,-542.383194,0.00024174,7]
[332813391,1721545842002,-542.383194,0.00024174,7]
[332813393,1721545842011,-151.0,0.00024174,7]
[332813395,1721545842020,-151.0,0.00024174,7]
[332813397,1721545842030,-1000.0,0.00024452,2]
[332813399,1721545842039,-1008.10976634,0.00024476,2]
[332813401,1721545842048,-155.26,0.00024496,2]
[332813403,1721545842057,-1365.48347164,0.000246,14]
[332813405,1721545842067,-1000.0,0.00024726,2]
[332813407,1721545842076,-500.0,0.00024726,2]
[332813409,1721545842085,-900.0,0.000248,9]
[332813411,1721545842094,-152.0,0.00024875,2]
[332813413,1721545842103,-158.12858035,0.000249,2]
[332813415,1721545842112,-1000.0,0.000249,2]
[332813417,1721545842122,-297.98002003,0.000249,2]
[332813419,1721545842131,-1200.0,0.000249,9]
[332813421,1721545842140,-222.48,0.00024904,3]
[332813423,1721545842151,-156.88181237,0.00024962,2]
[332813425,1721545842160,-448.7960396,0.00024976,2]
[332813427,1721545842169,-4038.6572226,0.00024983,2]
[332813429,1721545842179,-3505.2130027,0.00024983,2]
[332813431,1721545842188,-151.03453606,0.00024986,4]
[332813433,1721545842199,-151.0,0.0002499,7]
[332813435,1721545842208,-151.0,0.0002499,7]
[332813437,1721545842218,-326.90209712,0.00024997,5]
[332813439,1721545842227,-1050.00000001,0.00024999,4]
[332813441,1721545842237,-592.11,0.00024999,2]
[332813443,1721545842247,-5813.93713232,0.00025,2]
[332813446,1721545842262,-761261.10569262,0.00025,2]
[332813448,1721545842271,-321838.23294738,0.00025,2]
[332813450,1721545842283,-1746.04,0.00025,2]
[332813525,1721545843011,-160.58899865,0.00014896,2]
[332813527,1721545843020,-227.49811675,0.0001587,2]
[332813529,1721545843030,-713.0128846,0.00025,2]
[332813536,1721545843090,-1392.54925059,0.00025,2]
[332813540,1721545843113,-272.77261886,0.00025,2]
[332813544,1721545843137,-344484.89326932,0.00025,2]
[332813547,1721545843146,-1500.0,0.00025,30]
[332813550,1721545843156,-155.0,0.00025,2]
[332813552,1721545843166,-1829.44,0.00025,2]
[332813554,1721545843175,-985.0,0.00025,8]
[332813556,1721545843185,-387415.65274875,0.00025,2]
[332813558,1721545843196,-3221.27594137,0.00025,2]
[332813839,1721545846051,-1101.1,0.00025,2]
[332813842,1721545846064,-669.032394,0.00025,2]
[332813849,1721545846127,-378.0947636,0.00025,2]
[332813852,1721545846139,-25793.9833917,0.00025,2]
[332813854,1721545846150,-1133.29076634,0.00025,2]
[332813856,1721545846161,-300.0,0.00025,2]
[332813858,1721545846172,-2745.0,0.00025,2]
[332813871,1721545846258,-1722.22563308,0.00025,2]
[332813881,1721545846337,-135879.11386505,0.00025,2]
[332813883,1721545846348,-253.24811754,0.00025,2]
[332813885,1721545846358,-225.79672734,0.00025,2]
[332813887,1721545846368,-2148.8131798,0.00025,2]
[332813889,1721545846379,-985.0,0.00025,8]
[332813891,1721545846387,-2000.0,0.00025,2]
[332813893,1721545846397,-2000.0,0.00025,2]
[332813895,1721545846406,-492.0,0.00025,8]
[332813897,1721545846418,-3294.2170122,0.00025,4]
[332813899,1721545846428,-220.0,0.00025,2]
[332813901,1721545846438,-215.0,0.00025,2]
[332813903,1721545846448,-201.0,0.00025,2]
[332813905,1721545846457,-200.0,0.00025,2]
[332813907,1721545846466,-213.0,0.00025,2]
[332813909,1721545846478,-2000.0,0.00025,2]
[332813911,1721545846487,-193.0,0.00025,8]
[332813913,1721545846497,-1700.0,0.00025,2]
[332813915,1721545846506,-900.0,0.00025,2]
[332813917,1721545846517,-151.0,0.00025,7]
[332813919,1721545846526,-209.222656,0.00025,7]
[332813921,1721545846536,-151.0,0.00025,7]
[332813922,1721545846545,-151.0,0.00025,7]
[332813924,1721545846554,-151.0,0.00025,7]
[332813926,1721545846564,-151.0,0.00025,7]
[332813928,1721545846573,-151.0,0.00025,7]
[332813930,1721545846583,-400.0,0.00025,2]
[332813932,1721545846593,-1008.38,0.00025,2]
[332813934,1721545846602,-167.149442,0.00025,7]
[332813936,1721545846611,-167.149442,0.00025,7]
[332813937,1721545846620,-167.149442,0.00025,7]
[332813939,1721545846630,-167.149442,0.00025,7]
[332813941,1721545846639,-167.149442,0.00025,7]
[332813943,1721545846648,-167.149442,0.00025,7]
[332813945,1721545846657,-165.0,0.00025,13]
[332813947,1721545846667,-311.81082437,0.00025,4]
[332813949,1721545846676,-150.0,0.00025,2]
[332813950,1721545846685,-347.805978,0.00025,7]
[332813952,1721545846694,-347.805978,0.00025,7]
[332813954,1721545846704,-347.805978,0.00025,7]
[332813956,1721545846713,-347.805978,0.00025,7]
[332813958,1721545846721,-347.805978,0.00025,7]
[332813960,1721545846730,-347.805978,0.00025,7]
[332813962,1721545846740,-150.0,0.00025,2]
[332813964,1721545846750,-150.0,0.00025,2]
[332813966,1721545846759,-151.0,0.00025,2]
[332813968,1721545846768,-150.0,0.00025,2]
[332813969,1721545846778,-542.383194,0.00025,7]
[332813971,1721545846788,-542.383194,0.00025,7]
[332813973,1721545846797,-542.383194,0.00025,7]
[332813975,1721545846806,-542.383194,0.00025,7]
[332813977,1721545846815,-542.383194,0.00025,7]
[332813979,1721545846824,-542.383194,0.00025,7]
[332813980,1721545846834,-151.0,0.00025,7]
[332813982,1721545846843,-151.0,0.00025,7]
[332813984,1721545846851,-151.0,0.00025,7]
[332813986,1721545846861,-151.0,0.00025,7]
[332813988,1721545846870,-151.0,0.00025,7]
[332813990,1721545846879,-150.0,0.00025,2]
[332813992,1721545846888,-150.0,0.00025,2]
[332813994,1721545846897,-150.0,0.00025,2]
[332813996,1721545846906,-150.0,0.00025,2]
[332813998,1721545846917,-150.0,0.00025,2]
[332814000,1721545846927,-298.71033702,0.00025,2]
[332814002,1721545846937,-150.0,0.00025,2]
[332814004,1721545846946,-151.0,0.00025,7]
[332814005,1721545846955,-210.631418,0.00025,7]
[332814007,1721545846964,-150.0,0.00025,2]
[332814009,1721545846974,-150.0,0.00025,2]
[332814011,1721545846984,-150.0,0.00025,2]
[332814013,1721545846993,-151.0,0.00025,7]
[332814015,1721545847002,-151.0,0.00025,7]
[332814017,1721545847012,-151.0,0.00025,7]
[332814019,1721545847023,-500.3663,0.00025,2]
[332814021,1721545847032,-500.3663,0.00025,2]
[332814023,1721545847041,-151.0,0.00025,7]
[332814025,1721545847051,-151.0,0.00025,7]
[332814027,1721545847060,-151.0,0.00025,7]
[332814029,1721545847071,-151.0,0.00025,7]
[332814031,1721545847080,-151.0,0.00025,7]
[332814033,1721545847089,-151.0,0.00025,7]
[332814035,1721545847099,-183.422278,0.00025,7]
[332814037,1721545847108,-183.422278,0.00025,7]
[332814039,1721545847118,-183.422278,0.00025,7]
[332814041,1721545847128,-183.422278,0.00025,7]
[332814043,1721545847137,-183.422278,0.00025,7]
[332814045,1721545847148,-183.422278,0.00025,7]
[332814047,1721545847158,-151.0,0.00025,7]
[332814049,1721545847168,-151.0,0.00025,7]
[332814051,1721545847177,-151.0,0.00025,7]
[332814053,1721545847187,-151.0,0.00025,7]
[332814055,1721545847196,-151.0,0.00025,7]
[332814057,1721545847206,-151.0,0.00025,7]
[332814059,1721545847215,-151.0,0.00025,7]
[332814061,1721545847225,-217.674155,0.00025,7]
[332814063,1721545847235,-151.0,0.00025,7]
[332814065,1721545847244,-151.0,0.00025,7]
[332814067,1721545847254,-282.464038,0.00025,7]
[332814069,1721545847263,-151.0,0.00025,7]
[332814070,1721545847272,-151.0,0.00025,7]
[332814072,1721545847282,-151.0,0.00025,7]
[332814074,1721545847291,-2000.0,0.00025008,2]
[332814076,1721545847302,-7193.82859877,0.00025008,2]
[332814078,1721545847315,-500.0,0.00025008,2]
[332814080,1721545847325,-500.0,0.00025008,2]
[332814082,1721545847334,-500.0,0.00025008,2]
[332814084,1721545847344,-500.0,0.00025008,2]
[332814086,1721545847354,-500.0,0.00025008,2]
[332814088,1721545847363,-500.0,0.00025008,2]
[332814090,1721545847373,-500.0,0.00025008,2]
[332814091,1721545847383,-500.0,0.00025008,2]
[332814093,1721545847393,-500.0,0.00025008,2]
[332814095,1721545847402,-500.0,0.00025008,2]
[332814097,1721545847411,-500.0,0.00025008,2]
[332814099,1721545847421,-500.0,0.00025008,2]
[332814101,1721545847431,-500.0,0.00025008,2]
[332814103,1721545847440,-500.0,0.00025008,2]
[332814105,1721545847450,-500.0,0.00025008,2]
[332814107,1721545847460,-500.0,0.00025008,2]
[332814109,1721545847470,-500.0,0.00025008,2]
[332814110,1721545847479,-500.0,0.00025008,2]
[332814113,1721545847489,-500.0,0.00025008,2]
[332814114,1721545847499,-500.0,0.00025008,2]
[332814116,1721545847508,-500.0,0.00025008,2]
[332814118,1721545847518,-500.0,0.00025008,2]
[332814120,1721545847528,-500.0,0.00025008,2]
[332814122,1721545847537,-500.0,0.00025008,2]
[332814124,1721545847547,-500.0,0.00025008,2]
[332814126,1721545847556,-500.0,0.00025008,2]
[332814128,1721545847567,-500.0,0.00025008,2]
[332814130,1721545847577,-500.0,0.00025008,2]
[332814132,1721545847586,-500.0,0.00025008,2]
[332814134,1721545847595,-500.0,0.00025008,2]
[332814136,1721545847605,-637.45987825,0.00025008,2]
[332814138,1721545847614,-500.0,0.00025008,2]
[332814140,1721545847624,-500.0,0.00025008,2]
[332814142,1721545847634,-500.0,0.00025008,2]
[332814144,1721545847643,-500.0,0.00025008,2]
[332814146,1721545847653,-500.0,0.00025008,2]
[332814148,1721545847662,-500.0,0.00025008,2]
[332814150,1721545847671,-500.0,0.00025008,2]
[332814152,1721545847681,-500.0,0.00025008,2]
[332814154,1721545847690,-500.0,0.00025008,2]
[332814156,1721545847700,-500.0,0.00025008,2]
[332814158,1721545847709,-500.0,0.00025008,2]
[332814160,1721545847718,-500.0,0.00025008,2]
[332814162,1721545847728,-500.0,0.00025008,2]
[332814164,1721545847739,-500.0,0.00025008,2]
[332814166,1721545847748,-500.0,0.00025008,2]
[332814168,1721545847757,-500.0,0.00025008,2]
[332814170,1721545847767,-500.0,0.00025008,2]
[332814172,1721545847776,-500.0,0.00025008,2]
[332814174,1721545847785,-500.0,0.00025008,2]
[332814176,1721545847796,-500.0,0.00025008,2]
[332814178,1721545847805,-500.0,0.00025008,2]
[332814180,1721545847815,-500.0,0.00025008,2]
[332814182,1721545847825,-500.0,0.00025008,2]
[332814184,1721545847834,-500.0,0.00025008,2]
[332814186,1721545847844,-500.0,0.00025008,2]
[332814187,1721545847854,-500.0,0.00025008,2]
[332814189,1721545847863,-500.0,0.00025008,2]
[332814191,1721545847873,-500.0,0.00025008,2]
[332814193,1721545847882,-500.0,0.00025008,2]
[332814195,1721545847892,-562.40431261,0.00025008,2]
[332814197,1721545847902,-160.66658499,0.0002509,120]
[332814199,1721545847911,-155.26,0.00025141,2]
[332814201,1721545847921,-1000.0,0.00025205,2]
[332814203,1721545847930,-311.81082437,0.00025246,4]
[332814205,1721545847940,-151.0,0.0002525,7]
[332814207,1721545847950,-150.0,0.00025289,4]
[332814209,1721545847959,-150.0,0.00025358,4]
[332814211,1721545847970,-500.0,0.00025383,2]
[332814213,1721545847979,-311.81082437,0.00025491,4]
[332814215,1721545847988,-165.0,0.000255,13]
[332814217,1721545847998,-1000.0,0.00025548,2]
[332814219,1721545848007,-150.0,0.00025579,4]
[332814221,1721545848017,-150.0,0.00025715,4]
[332814223,1721545848027,-311.81082437,0.00025737,4]
[332814225,1721545848037,-167.149442,0.00025737,7]
[332814227,1721545848046,-167.149442,0.00025737,7]
[332814229,1721545848056,-500.0,0.00025764,2]
[332814231,1721545848065,-155.26,0.00025786,2]
[332814233,1721545848075,-592.11,0.00025821,3]
[332814235,1721545848084,-347.805978,0.00025821,7]
[332814236,1721545848093,-347.805978,0.00025821,7]
[332814237,1721545848103,-542.383194,0.00025821,7]
[332814238,1721545848112,-542.383194,0.00025821,7]
[332814239,1721545848122,-1000.0,0.00025822,2]
[332814240,1721545848131,-599.45103705,0.00025822,2]
[332814241,1721545848141,-151.0,0.00025822,7]
[332814243,1721545848151,-151.0,0.00025822,7]
[332814245,1721545848160,-151.0,0.00025822,7]
[332814247,1721545848170,-151.0,0.00025822,7]
[332814249,1721545848179,-183.422278,0.00025822,7]
[332814251,1721545848188,-183.422278,0.00025822,7]
[332814253,1721545848198,-151.0,0.00025822,7]
[332814255,1721545848207,-151.0,0.00025822,7]
[332814257,1721545848216,-151.0,0.00025822,7]
[332814259,1721545848226,-150.0,0.00025868,4]
[332814261,1721545848236,-150.0,0.00025868,4]
[332814263,1721545848245,-154.50737358,0.000259,2]
[332814265,1721545848255,-154.50737355,0.000259,2]
[332814267,1721545848264,-154.50737355,0.000259,2]
[332814269,1721545848273,-311.81082437,0.00025982,4]
[332814271,1721545848283,-1009.78936554,0.00026,2]
[332814273,1721545848293,-2000.0,0.00026,2]
[332814275,1721545848303,-2000.0,0.00026,2]
[332814277,1721545848315,-165.0,0.00026,14]
[332814279,1721545848325,-150.0,0.00026073,4]
[332814281,1721545848335,-1700.0,0.00026096,2]
[332814283,1721545848344,-900.0,0.00026096,2]
[332814285,1721545848355,-150.0,0.00026105,4]
[332814287,1721545848364,-500.0,0.0002615,2]
[332814289,1721545848374,-150.0,0.00026158,4]
[332814292,1721545848384,-311.81082437,0.00026228,4]
[332814293,1721545848395,-500.18682873,0.00026245,2]
[332814295,1721545848405,-1008.38,0.00026275,2]
[332814297,1721545848414,-1600.57,0.00026306,2]
[332814299,1721545848425,-4096.78398648,0.0002633,2]
[332814302,1721545848434,-155.26,0.0002643,2]
[332814304,1721545848444,-150.0,0.0002643,4]
[332814305,1721545848453,-150.0,0.0002643,4]
[332814308,1721545848463,-150.0,0.00026447,4]
[332814310,1721545848474,-1914.93653259,0.00026454,2]
[332814312,1721545848484,-311.81082437,0.00026474,4]
[332814314,1721545848493,-165.0,0.000265,14]
[332814316,1721545848503,-500.0,0.00026543,2]
[332814318,1721545848513,-592.11,0.00026643,4]
[332814320,1721545848523,-908.01263469,0.00026644,2]
[332814322,1721545848532,-1829.44,0.000267,2]
[332814324,1721545848542,-311.81082437,0.00026719,4]
[332814326,1721545848551,-150.0,0.00026737,4]
[332814328,1721545848562,-150.0,0.00026737,4]
[332814330,1721545848571,-102152.42558886,0.0002678,7]
[332814332,1721545848581,-174.512772,0.0002678,7]
[332814334,1721545848591,-167.149442,0.0002678,7]
[332814336,1721545848600,-167.149442,0.0002678,7]
[332814338,1721545848610,-347.805978,0.0002678,7]
[332814340,1721545848619,-347.805977,0.0002678,7]
[332814342,1721545848629,-542.383194,0.0002678,7]
[332814344,1721545848639,-542.383197,0.0002678,7]
[332814346,1721545848649,-151.0,0.0002678,7]
[332814377,1721545848963,-151.0,0.0002678,7]
[332814379,1721545848975,-174.603097,0.0002678,7]
[332814381,1721545848987,-183.422278,0.0002678,7]
[332814383,1721545848998,-183.422278,0.0002678,7]
[332814386,1721545849011,-151.0,0.0002678,7]
[332814388,1721545849021,-151.0,0.0002678,7]
[332814390,1721545849033,-151.0,0.0002678,7]
[332814392,1721545849044,-150.0,0.00026788,4]
[332814394,1721545849056,-1268.79,0.000268,2]
[332814396,1721545849067,-1322.96,0.000268,7]
[332814398,1721545849077,-905.06096895,0.00026918,2]
[332814401,1721545849089,-223.43,0.00026921,2]
[332814403,1721545849100,-500.0,0.00026941,2]
[332814405,1721545849111,-311.81082437,0.00026965,4]
[332814407,1721545849122,-25655.24694946,0.00027,7]
[332814409,1721545849132,-2000.0,0.00027,2]
[332814411,1721545849143,-2000.0,0.00027,2]
[332814413,1721545849154,-450.0,0.00027,2]
[332814415,1721545849165,-165.0,0.00027,15]
[332814417,1721545849175,-150.0,0.00027026,4]
[332814419,1721545849186,-155.26,0.00027075,2]
[332814421,1721545849198,-150.0,0.00027145,4]
[332814423,1721545849208,-1700.0,0.00027192,2]
[332814425,1721545849219,-900.0,0.00027192,2]
[332814426,1721545849232,-311.81082437,0.0002721,4]
[332814427,1721545849243,-150.0,0.0002721,4]
[332814428,1721545849254,-150.0,0.00027316,4]
[332814429,1721545849265,-500.0,0.00027345,2]
[332814430,1721545849276,-167.69424097,0.00027397,2]
[332814431,1721545849287,-151.0,0.00027397,7]
[332814432,1721545849299,-152.127338,0.00027397,7]
[332814433,1721545849312,-311.81082437,0.00027456,7]
[332814434,1721545849322,-592.11,0.00027465,120]
[332814435,1721545849333,-165.0,0.000275,16]
[332814436,1721545849345,-150.0,0.00027503,7]
[332814437,1721545849356,-1008.38,0.0002755,2]
[332814438,1721545849366,-150.0,0.00027605,7]
[332814439,1721545849376,-150.0,0.00027605,7]
[332814440,1721545849389,-750.0,0.00027611,2]
[332814441,1721545849400,-311.81082437,0.00027702,7]
[332814442,1721545849410,-155.26,0.00027719,2]
[332814443,1721545849419,-447.55108907,0.00027755,2]
[332814444,1721545849429,-1268.79,0.000278,2]
[332814445,1721545849438,-1322.96,0.000278,14]
[332814446,1721545849447,-150.0,0.00027861,7]
[332814447,1721545849457,-150.0,0.00027861,7]
[332814448,1721545849467,-150.0,0.00027895,7]
[332814449,1721545849477,-311.81082437,0.00027947,7]
[332814450,1721545849487,-371.40691921,0.00028,2]
[332814451,1721545849496,-2562.20206707,0.00028,2]
[332814452,1721545849505,-621.86554124,0.00028,2]
[332814453,1721545849515,-2000.0,0.00028,2]
[332814454,1721545849526,-14918.68748932,0.00028,2]
[332814455,1721545849536,-2000.0,0.00028,2]
[332814456,1721545849546,-165.0,0.00028,16]
[332814457,1721545849556,-150.0,0.00028184,7]
[332814458,1721545849567,-311.81082437,0.00028193,7]
[332814459,1721545849578,-150.0,0.00028218,7]
[332814460,1721545849588,-592.11,0.00028287,120]
[332814461,1721545849599,-927.36890959,0.00028288,2]
[332814462,1721545849610,-900.0,0.00028288,2]
[332814463,1721545849621,-1829.44,0.000283,2]
[332814464,1721545849631,-150.0,0.00028316,7]
[332814465,1721545849642,-155.26,0.00028364,2]
[332814466,1721545849652,-311.81082437,0.00028438,7]
[332814467,1721545849663,-152.0,0.00028472,3]
[332814468,1721545849674,-155.60099472,0.00028472,5]
[332814469,1721545849684,-150.0,0.00028474,7]
[332814471,1721545849695,-150.0,0.00028474,7]
[332814472,1721545849705,-165.0,0.000285,17]
[332814473,1721545849716,-154.81444549,0.00028528,2]
[332814474,1721545849728,-1600.57,0.0002857,2]
[332814475,1721545849738,-150.0,0.00028576,7]
[332814476,1721545849748,-311.81082437,0.00028684,7]
[332814477,1721545849759,-150.0,0.00028763,7]
[332814478,1721545849769,-1268.79,0.000288,2]
[332814479,1721545849779,-1322.96,0.000288,14]
[332814480,1721545849789,-167.149442,0.000288,7]
[332814481,1721545849799,-167.149436,0.000288,7]
[332814482,1721545849808,-183.422278,0.000288,7]
[332814483,1721545849818,-183.422278,0.000288,7]
[332814484,1721545849828,-151.0,0.000288,7]
[332814485,1721545849838,-151.0,0.000288,7]
[332814486,1721545849847,-151.0,0.000288,7]
[332814487,1721545849857,-191.66,0.00028812,30]
[332814488,1721545849866,-151.0,0.00028822,7]
[332814489,1721545849876,-150.58,0.00028822,2]
[332814490,1721545849886,-150.0,0.00028822,2]
[332814491,1721545849895,-150.0,0.00028822,2]
[332814492,1721545849904,-150.0,0.00028822,2]
[332814493,1721545849914,-150.0,0.00028822,2]
[332814494,1721545849924,-150.0,0.00028822,2]
[332814495,1721545849934,-150.0,0.00028822,2]
[332814496,1721545849943,-150.0,0.00028822,2]
[332814497,1721545849953,-150.0,0.00028822,2]
[332814498,1721545849962,-150.0,0.00028822,2]
[332814499,1721545849972,-150.0,0.00028822,2]
[332814500,1721545849982,-150.0,0.00028822,2]
[332814501,1721545849992,-150.0,0.00028822,2]
[332814502,1721545850001,-150.0,0.00028822,2]
[332814503,1721545850011,-150.0,0.00028822,2]
[332814504,1721545850021,-150.0,0.00028822,2]
[332814506,1721545850031,-150.0,0.00028822,2]
[332814507,1721545850040,-150.0,0.00028822,2]
[332814508,1721545850050,-150.0,0.00028822,2]
[332814509,1721545850060,-150.0,0.00028822,2]
[332814510,1721545850070,-302.34,0.00028822,2]
[332814511,1721545850079,-300.59,0.00028822,2]
[332814513,1721545850089,-1008.38,0.00028825,2]
[332814515,1721545850099,-4096.78398648,0.00028872,2]
[332814517,1721545850108,-397.86,0.000289,2]
[332814519,1721545850118,-397.86,0.000289,2]
[332814521,1721545850128,-397.86,0.000289,2]
[332814523,1721545850138,-397.86,0.000289,2]
[332814525,1721545850148,-397.86,0.000289,2]
[332814527,1721545850158,-397.86,0.000289,2]
[332814529,1721545850168,-397.86,0.000289,2]
[332814531,1721545850178,-397.86,0.000289,2]
[332814533,1721545850188,-397.86,0.000289,2]
[332814535,1721545850198,-397.86,0.000289,2]
[332814537,1721545850207,-397.86,0.000289,2]
[332814539,1721545850217,-397.86,0.000289,2]
[332814541,1721545850229,-397.86,0.000289,2]
[332814543,1721545850239,-397.86,0.000289,2]
[332814545,1721545850251,-397.86,0.000289,2]
[332814547,1721545850261,-397.86,0.000289,2]
[332814549,1721545850271,-397.86,0.000289,2]
[332814551,1721545850280,-397.86,0.000289,2]
[332814553,1721545850290,-397.86,0.000289,2]
[332814554,1721545850300,-397.86,0.000289,2]
[332814556,1721545850314,-397.86,0.000289,2]
[332814558,1721545850324,-397.86,0.000289,2]
[332814560,1721545850334,-397.86,0.000289,2]
[332814562,1721545850343,-397.86,0.000289,2]
[332814564,1721545850355,-397.86,0.000289,2]
[332814566,1721545850364,-397.86,0.000289,2]
[332814568,1721545850374,-397.86,0.000289,2]
[332814570,1721545850385,-397.86,0.000289,2]
[332814572,1721545850395,-397.86,0.000289,2]
[332814574,1721545850405,-397.86,0.000289,2]
[332814576,1721545850415,-397.86,0.000289,2]
[332814578,1721545850424,-397.86,0.000289,2]
[332814580,1721545850434,-397.86,0.000289,2]
[332814582,1721545850443,-397.86,0.000289,2]
[332814584,1721545850453,-397.86,0.000289,2]
[332814586,1721545850462,-311.81082437,0.0002893,7]
[332814587,1721545850472,-150.0,0.00028933,7]
[332814589,1721545850484,-1914.93653259,0.00028965,2]
[332814591,1721545850493,-4176.14045734,0.00029,2]
[332814594,1721545850503,-3222.4516859,0.00029,2]
[332814596,1721545850514,-2000.0,0.00029,2]
[332814598,1721545850523,-500.0,0.00029,5]
[332814599,1721545850533,-2000.0,0.00029,2]
[332814601,1721545850543,-500.0,0.00029,2]
[332814603,1721545850553,-165.0,0.00029,17]
[332814605,1721545850562,-155.26,0.00029009,2]